{"text_format":"3","workbook":"xlsx","n_sheets":2,"sheets":["POČETAK","LIČNI MESEČNI BUDŽET"],"read":"whole","date_system":"1900"}

{"sheet":"POČETAK","index":0,"n_rows":7,"n_cols":2,"rows_kept":7}
[null,"OSNOVNI PODACI O OVOM PREDLOŠKU"]
[null,"Koristite ovaj radni list za lični mesečni budžet da biste pratili predviđeni i stvarni mesečni prihod i predviđeni i stvarni trošak."]
[null,"Troškove nastale u raznim kategorijama unesite u odgovarajuće tabele."]
[null,"Predviđeni bilans, stvarni bilans i razlika automatski se izračunavaju."]
[null,"Napomena: "]
[null,"Dodatna uputstva navedena su u koloni A na radnom listu „LIČNI MESEČNI BUDŽET“. Taj tekst je namerno skriven. Da biste uklonili tekst, izaberite kolonu A, a zatim izaberite stavku „IZBRIŠI“. Da biste otkrili tekst, izaberite kolonu A, a zatim promenite boju fonta."]
[null,"Da biste saznali više o tabelama na radnom listu, pritisnite taster SHIFT, a zatim unutar tabele pritisnite taster F10, izaberite opciju „TABELA“, a zatim stavku „ALTERNATIVNI TEKST“."]

{"sheet":"LIČNI MESEČNI BUDŽET","index":1,"n_rows":64,"n_cols":10,"rows_kept":64,"merged":[[3,1,5,1],[3,2,3,3],[3,6,4,8],[3,9,4,9],[4,2,4,3],[5,2,5,3],[5,6,6,8],[5,9,6,9],[7,1,9,1],[7,2,7,3],[7,6,8,8],[7,9,8,9],[8,2,8,3],[9,2,9,3],[58,6,59,8],[58,9,59,9],[60,6,61,8],[60,9,61,9],[62,6,63,8],[62,9,63,9]]}
["Na ovom radnom listu napravite lični mesečni budžet. Korisna uputstva o tome kako da koristite ovaj radni list nalaze se u ćelijama u ovoj koloni. Pritisnite strelicu nadole da biste počeli."]
["Naslov ovog radnog lista nalazi se u ćeliji sa desne strane. Sledeće uputstvo se nalazi u ćeliji A4.","LIČNI MESEČNI BUDŽET"]
[]
["Oznaka „Predviđeni mesečni prihod“ nalazi se u ćeliji sa desne strane. Prihod 1 unesite u ćeliju E4, a dodatni prihod u ćeliju E5 da biste izračunali ukupan mesečni prihod u ćeliji E6. Sledeće uputstvo se nalazi u ćeliji A6.","PREDVIĐENI MESEČNI PRIHOD","Prihod 1",null,{"v":4300,"d":"RSD 4,300.00"},null,"PREDVIĐENI BILANS \n(predviđeni prihod minus troškovi)",null,null,{"$f":"E6-J59","v":{"v":3405,"d":"RSD 3,405.00"}}]
[null,null,"Dodatni prihod",null,{"v":300,"d":"RSD 300.00"}]
["Predviđeni bilans se automatski izračunava u ćeliji J4, stvarni bilans u ćeliji J6, a razlika u ćeliji J8. Sledeće uputstvo se nalazi u ćeliji A8.",null,"Ukupan mesečni prihod",null,{"$f":"SUM(E4:E5)","v":{"v":4600,"d":"RSD 4,600.00"}},null,"STVARNI BILANS \n(stvarni prihod minus troškovi)",null,null,{"$f":"E10-J61","v":{"v":3064,"d":"RSD 3,064.00"}}]
[]
["Oznaka „Stvarni mesečni prihod“ nalazi se u ćeliji sa desne strane. Prihod 1 unesite u ćeliju E8, a dodatni prihod u ćeliju E9 da biste izračunali ukupan mesečni prihod u ćeliji E10. Sledeće uputstvo se nalazi u ćeliji A12.","STVARNI MESEČNI PRIHOD","Prihod 1",null,{"v":4000,"d":"RSD 4,000.00"},null,"RAZLIKA \n(stvarni minus predviđeni)",null,null,{"$f":"J6-J4","v":{"v":-341,"d":"(RSD 341.00)"}}]
[null,null,"Dodatni prihod",null,{"v":300,"d":"RSD 300.00"}]
[null,null,"Ukupan mesečni prihod",null,{"$f":"SUM(E8:E9)","v":{"v":4300,"d":"RSD 4,300.00"}}]
[]
["Unesite detalje u tabelu „Domaćinstvo“ počevši od ćelije sa desne strane i u tabelu „Zabava“ počevši od ćelije G12. Sledeće uputstvo se nalazi u ćeliji A25.","DOMAĆINSTVO","Predviđeni trošak","Stvarni trošak","Razlika",null,"ZABAVA","Predviđeni trošak","Stvarni trošak","Razlika"]
[null,"Hipoteka ili izdavanje",{"v":1000,"d":"RSD 1,000.00"},{"v":1000,"d":"RSD 1,000.00"},{"$f":"Domaćinstvo[[#This Row],[Predviđeni trošak]]-Domaćinstvo[[#This Row],[Stvarni trošak]]","v":{"v":0,"d":"RSD 0.00"}},null,"Noćno izlaženje",null,null,{"$f":"Zabava[[#This Row],[Predviđeni trošak]]-Zabava[[#This Row],[Stvarni trošak]]","v":{"v":0,"d":"RSD 0.00"}}]
[null,"Telefon",{"v":54,"d":"RSD 54.00"},{"v":100,"d":"RSD 100.00"},{"$f":"Domaćinstvo[[#This Row],[Predviđeni trošak]]-Domaćinstvo[[#This Row],[Stvarni trošak]]","v":{"v":-46,"d":"-RSD 46.00"}},null,"Muzičke platforme",null,null,{"$f":"Zabava[[#This Row],[Predviđeni trošak]]-Zabava[[#This Row],[Stvarni trošak]]","v":{"v":0,"d":"RSD 0.00"}}]
[null,"Struja",{"v":44,"d":"RSD 44.00"},{"v":56,"d":"RSD 56.00"},{"$f":"Domaćinstvo[[#This Row],[Predviđeni trošak]]-Domaćinstvo[[#This Row],[Stvarni trošak]]","v":{"v":-12,"d":"-RSD 12.00"}},null,"Filmovi",null,null,{"$f":"Zabava[[#This Row],[Predviđeni trošak]]-Zabava[[#This Row],[Stvarni trošak]]","v":{"v":0,"d":"RSD 0.00"}}]
[null,"Gas",{"v":22,"d":"RSD 22.00"},{"v":28,"d":"RSD 28.00"},{"$f":"Domaćinstvo[[#This Row],[Predviđeni trošak]]-Domaćinstvo[[#This Row],[Stvarni trošak]]","v":{"v":-6,"d":"-RSD 6.00"}},null,"Koncerti",null,null,{"$f":"Zabava[[#This Row],[Predviđeni trošak]]-Zabava[[#This Row],[Stvarni trošak]]","v":{"v":0,"d":"RSD 0.00"}}]
[null,"Voda i kanalizacija",{"v":8,"d":"RSD 8.00"},{"v":8,"d":"RSD 8.00"},{"$f":"Domaćinstvo[[#This Row],[Predviđeni trošak]]-Domaćinstvo[[#This Row],[Stvarni trošak]]","v":{"v":0,"d":"RSD 0.00"}},null,"Sportski događaji",null,null,{"$f":"Zabava[[#This Row],[Predviđeni trošak]]-Zabava[[#This Row],[Stvarni trošak]]","v":{"v":0,"d":"RSD 0.00"}}]
[null,"Kablovska televizija",{"v":34,"d":"RSD 34.00"},{"v":34,"d":"RSD 34.00"},{"$f":"Domaćinstvo[[#This Row],[Predviđeni trošak]]-Domaćinstvo[[#This Row],[Stvarni trošak]]","v":{"v":0,"d":"RSD 0.00"}},null,"Pozorište",null,null,{"$f":"Zabava[[#This Row],[Predviđeni trošak]]-Zabava[[#This Row],[Stvarni trošak]]","v":{"v":0,"d":"RSD 0.00"}}]
[null,"Uklanjanje otpada",{"v":10,"d":"RSD 10.00"},{"v":10,"d":"RSD 10.00"},{"$f":"Domaćinstvo[[#This Row],[Predviđeni trošak]]-Domaćinstvo[[#This Row],[Stvarni trošak]]","v":{"v":0,"d":"RSD 0.00"}},null,"Drugo",null,null,{"$f":"Zabava[[#This Row],[Predviđeni trošak]]-Zabava[[#This Row],[Stvarni trošak]]","v":{"v":0,"d":"RSD 0.00"}}]
[null,"Održavanje ili popravke",{"v":23,"d":"RSD 23.00"},{"v":0,"d":"RSD 0.00"},{"$f":"Domaćinstvo[[#This Row],[Predviđeni trošak]]-Domaćinstvo[[#This Row],[Stvarni trošak]]","v":{"v":23,"d":"RSD 23.00"}},null,"Drugo",null,null,{"$f":"Zabava[[#This Row],[Predviđeni trošak]]-Zabava[[#This Row],[Stvarni trošak]]","v":{"v":0,"d":"RSD 0.00"}}]
[null,"Pribor",{"v":0,"d":"RSD 0.00"},{"v":0,"d":"RSD 0.00"},{"$f":"Domaćinstvo[[#This Row],[Predviđeni trošak]]-Domaćinstvo[[#This Row],[Stvarni trošak]]","v":{"v":0,"d":"RSD 0.00"}},null,"Drugo",null,null,{"$f":"Zabava[[#This Row],[Predviđeni trošak]]-Zabava[[#This Row],[Stvarni trošak]]","v":{"v":0,"d":"RSD 0.00"}}]
[null,"Drugo",{"v":0,"d":"RSD 0.00"},{"v":0,"d":"RSD 0.00"},{"$f":"Domaćinstvo[[#This Row],[Predviđeni trošak]]-Domaćinstvo[[#This Row],[Stvarni trošak]]","v":{"v":0,"d":"RSD 0.00"}},null,"Međuvrednost",null,null,{"$f":"SUBTOTAL(109,Zabava[Razlika])","v":{"v":0,"d":"RSD 0.00"}}]
[null,"Međuvrednost",null,null,{"$f":"SUBTOTAL(109,Domaćinstvo[Razlika])","v":{"v":-41,"d":"-RSD 41.00"}}]
[{"$nulls":6},"ZAJMOVI","Predviđeni trošak","Stvarni trošak","Razlika"]
["Unesite detalje u tabelu „Prevoz“ počevši od ćelije sa desne strane i u tabelu „Zajmovi“ počevši od ćelije G24. Sledeće uputstvo se nalazi u ćeliji A35.","PREVOZ","Predviđeni trošak","Stvarni trošak","Razlika",null,"Lično",null,null,{"$f":"Krediti[[#This Row],[Predviđeni trošak]]-Krediti[[#This Row],[Stvarni trošak]]","v":{"v":0,"d":"RSD 0.00"}}]
[null,"Otplata vozila",null,null,{"$f":"Prevoz[[#This Row],[Predviđeni trošak]]-Prevoz[[#This Row],[Stvarni trošak]]","v":{"v":0,"d":"RSD 0.00"}},null,"Studentski",null,null,{"$f":"Krediti[[#This Row],[Predviđeni trošak]]-Krediti[[#This Row],[Stvarni trošak]]","v":{"v":0,"d":"RSD 0.00"}}]
[null,"Naknada za autobus/taksi",null,null,{"$f":"Prevoz[[#This Row],[Predviđeni trošak]]-Prevoz[[#This Row],[Stvarni trošak]]","v":{"v":0,"d":"RSD 0.00"}},null,"Kreditna kartica",null,null,{"$f":"Krediti[[#This Row],[Predviđeni trošak]]-Krediti[[#This Row],[Stvarni trošak]]","v":{"v":0,"d":"RSD 0.00"}}]
[null,"Osiguranje",null,null,{"$f":"Prevoz[[#This Row],[Predviđeni trošak]]-Prevoz[[#This Row],[Stvarni trošak]]","v":{"v":0,"d":"RSD 0.00"}},null,"Kreditna kartica",null,null,{"$f":"Krediti[[#This Row],[Predviđeni trošak]]-Krediti[[#This Row],[Stvarni trošak]]","v":{"v":0,"d":"RSD 0.00"}}]
[null,"Vozačka dozvola",null,null,{"$f":"Prevoz[[#This Row],[Predviđeni trošak]]-Prevoz[[#This Row],[Stvarni trošak]]","v":{"v":0,"d":"RSD 0.00"}},null,"Kreditna kartica",null,null,{"$f":"Krediti[[#This Row],[Predviđeni trošak]]-Krediti[[#This Row],[Stvarni trošak]]","v":{"v":0,"d":"RSD 0.00"}}]
[null,"Gorivo",null,null,{"$f":"Prevoz[[#This Row],[Predviđeni trošak]]-Prevoz[[#This Row],[Stvarni trošak]]","v":{"v":0,"d":"RSD 0.00"}},null,"Drugo",null,null,{"$f":"Krediti[[#This Row],[Predviđeni trošak]]-Krediti[[#This Row],[Stvarni trošak]]","v":{"v":0,"d":"RSD 0.00"}}]
[null,"Održavanje",null,null,{"$f":"Prevoz[[#This Row],[Predviđeni trošak]]-Prevoz[[#This Row],[Stvarni trošak]]","v":{"v":0,"d":"RSD 0.00"}},null,"Međuvrednost",null,null,{"$f":"SUBTOTAL(109,Krediti[Razlika])","v":{"v":0,"d":"RSD 0.00"}}]
[null,"Drugo",null,null,{"$f":"Prevoz[[#This Row],[Predviđeni trošak]]-Prevoz[[#This Row],[Stvarni trošak]]","v":{"v":0,"d":"RSD 0.00"}}]
[null,"Međuvrednost",null,null,{"$f":"SUBTOTAL(109,Prevoz[Razlika])","v":{"v":0,"d":"RSD 0.00"}},null,"POREZI","Predviđeni trošak","Stvarni trošak","Razlika"]
[{"$nulls":6},"Savezni",null,null,{"$f":"Porezi[[#This Row],[Predviđeni trošak]]-Porezi[[#This Row],[Stvarni trošak]]","v":{"v":0,"d":"RSD 0.00"}}]
["Unesite detalje u tabelu „Osiguranje“ počevši od ćelije sa desne strane i u tabelu „Porezi“ počevši od ćelije G33. Sledeće uputstvo se nalazi u ćeliji A42.","OSIGURANJE","Predviđeni trošak","Stvarni trošak","Razlika",null,"Državni",null,null,{"$f":"Porezi[[#This Row],[Predviđeni trošak]]-Porezi[[#This Row],[Stvarni trošak]]","v":{"v":0,"d":"RSD 0.00"}}]
[null,"Kuća",null,null,{"$f":"Osiguranje[[#This Row],[Predviđeni trošak]]-Osiguranje[[#This Row],[Stvarni trošak]]","v":{"v":0,"d":"RSD 0.00"}},null,"Lokalni",null,null,{"$f":"Porezi[[#This Row],[Predviđeni trošak]]-Porezi[[#This Row],[Stvarni trošak]]","v":{"v":0,"d":"RSD 0.00"}}]
[null,"Zdravstveno",null,null,{"$f":"Osiguranje[[#This Row],[Predviđeni trošak]]-Osiguranje[[#This Row],[Stvarni trošak]]","v":{"v":0,"d":"RSD 0.00"}},null,"Drugo",null,null,{"$f":"Porezi[[#This Row],[Predviđeni trošak]]-Porezi[[#This Row],[Stvarni trošak]]","v":{"v":0,"d":"RSD 0.00"}}]
[null,"Životno",null,null,{"$f":"Osiguranje[[#This Row],[Predviđeni trošak]]-Osiguranje[[#This Row],[Stvarni trošak]]","v":{"v":0,"d":"RSD 0.00"}},null,"Međuvrednost",null,null,{"$f":"SUBTOTAL(109,Porezi[Razlika])","v":{"v":0,"d":"RSD 0.00"}}]
[null,"Drugo",null,null,{"$f":"Osiguranje[[#This Row],[Predviđeni trošak]]-Osiguranje[[#This Row],[Stvarni trošak]]","v":{"v":0,"d":"RSD 0.00"}}]
[null,"Međuvrednost",null,null,{"$f":"SUBTOTAL(109,Osiguranje[Razlika])","v":{"v":0,"d":"RSD 0.00"}},null,"ŠTEDNJA ILI ULAGANJA","Predviđeni trošak","Stvarni trošak","Razlika"]
[{"$nulls":6},"Penzioni račun",null,null,{"$f":"Ušteda[[#This Row],[Predviđeni trošak]]-Ušteda[[#This Row],[Stvarni trošak]]","v":{"v":0,"d":"RSD 0.00"}}]
["Unesite detalje u tabelu „Hrana“ počevši od ćelije sa desne strane i u tabelu „Štednja“ počevši od ćelije G40. Sledeće uputstvo se nalazi u ćeliji A48.","HRANA","Predviđeni trošak","Stvarni trošak","Razlika",null,"Ulagački račun",null,null,{"$f":"Ušteda[[#This Row],[Predviđeni trošak]]-Ušteda[[#This Row],[Stvarni trošak]]","v":{"v":0,"d":"RSD 0.00"}}]
[null,"Namirnice",null,null,{"$f":"Hrana[[#This Row],[Predviđeni trošak]]-Hrana[[#This Row],[Stvarni trošak]]","v":{"v":0,"d":"RSD 0.00"}},null,"Drugo",null,null,{"$f":"Ušteda[[#This Row],[Predviđeni trošak]]-Ušteda[[#This Row],[Stvarni trošak]]","v":{"v":0,"d":"RSD 0.00"}}]
[null,"Restorani",null,null,{"$f":"Hrana[[#This Row],[Predviđeni trošak]]-Hrana[[#This Row],[Stvarni trošak]]","v":{"v":0,"d":"RSD 0.00"}},null,"Međuvrednost",null,null,{"$f":"SUBTOTAL(109,Ušteda[Razlika])","v":{"v":0,"d":"RSD 0.00"}}]
[null,"Drugo",null,null,{"$f":"Hrana[[#This Row],[Predviđeni trošak]]-Hrana[[#This Row],[Stvarni trošak]]","v":{"v":0,"d":"RSD 0.00"}}]
[null,"Međuvrednost",null,null,{"$f":"SUBTOTAL(109,Hrana[Razlika])","v":{"v":0,"d":"RSD 0.00"}},null,"POKLONI I DONACIJE","Predviđeni trošak","Stvarni trošak","Razlika"]
[{"$nulls":6},"Dobrotvorni prilog 1",null,null,{"$f":"Pokloni[[#This Row],[Predviđeni trošak]]-Pokloni[[#This Row],[Stvarni trošak]]","v":{"v":0,"d":"RSD 0.00"}}]
["Unesite detalje u tabelu „Ljubimci“ počevši od ćelije sa desne strane i u tabelu „Pokloni“ počevši od ćelije G46. Sledeće uputstvo se nalazi u ćeliji A56.","LJUBIMCI","Predviđeni trošak","Stvarni trošak","Razlika",null,"Dobrotvorni prilog 2",null,null,{"$f":"Pokloni[[#This Row],[Predviđeni trošak]]-Pokloni[[#This Row],[Stvarni trošak]]","v":{"v":0,"d":"RSD 0.00"}}]
[null,"Hrana",null,null,{"$f":"Ljubimci[[#This Row],[Predviđeni trošak]]-Ljubimci[[#This Row],[Stvarni trošak]]","v":{"v":0,"d":"RSD 0.00"}},null,"Dobrotvorni prilog 3",null,null,{"$f":"Pokloni[[#This Row],[Predviđeni trošak]]-Pokloni[[#This Row],[Stvarni trošak]]","v":{"v":0,"d":"RSD 0.00"}}]
[null,"Zdravstvo",null,null,{"$f":"Ljubimci[[#This Row],[Predviđeni trošak]]-Ljubimci[[#This Row],[Stvarni trošak]]","v":{"v":0,"d":"RSD 0.00"}},null,"Međuvrednost",null,null,{"$f":"SUBTOTAL(109,Pokloni[Razlika])","v":{"v":0,"d":"RSD 0.00"}}]
[null,"Doterivanje",null,null,{"$f":"Ljubimci[[#This Row],[Predviđeni trošak]]-Ljubimci[[#This Row],[Stvarni trošak]]","v":{"v":0,"d":"RSD 0.00"}}]
[null,"Igračke",null,null,{"$f":"Ljubimci[[#This Row],[Predviđeni trošak]]-Ljubimci[[#This Row],[Stvarni trošak]]","v":{"v":0,"d":"RSD 0.00"}},null,"PRAVNI ASPEKTI","Predviđeni trošak","Stvarni trošak","Razlika"]
[null,"Drugo",null,null,{"$f":"Ljubimci[[#This Row],[Predviđeni trošak]]-Ljubimci[[#This Row],[Stvarni trošak]]","v":{"v":0,"d":"RSD 0.00"}},null,"Advokat",null,null,{"$f":"Pravni_aspekti[[#This Row],[Predviđeni trošak]]-Pravni_aspekti[[#This Row],[Stvarni trošak]]","v":{"v":0,"d":"RSD 0.00"}}]
[null,"Međuvrednost",null,null,{"$f":"SUBTOTAL(109,Ljubimci[Razlika])","v":{"v":0,"d":"RSD 0.00"}},null,"Alimentacija",null,null,{"$f":"Pravni_aspekti[[#This Row],[Predviđeni trošak]]-Pravni_aspekti[[#This Row],[Stvarni trošak]]","v":{"v":0,"d":"RSD 0.00"}}]
[{"$nulls":6},"Isplate zasnovane na zapleni ili sudskoj odluci",null,null,{"$f":"Pravni_aspekti[[#This Row],[Predviđeni trošak]]-Pravni_aspekti[[#This Row],[Stvarni trošak]]","v":{"v":0,"d":"RSD 0.00"}}]
["Unesite detalje u tabelu „Lična nega“ počevši od ćelije sa desne strane i u tabelu „Pravni aspekti“ počevši od ćelije G52. Sledeće uputstvo se nalazi u ćeliji A59.","LIČNA NEGA","Predviđeni trošak","Stvarni trošak","Razlika",null,"Drugo",null,null,{"$f":"Pravni_aspekti[[#This Row],[Predviđeni trošak]]-Pravni_aspekti[[#This Row],[Stvarni trošak]]","v":{"v":0,"d":"RSD 0.00"}}]
[null,"Medicinski troškovi",null,null,{"$f":"LičnaNega[[#This Row],[Predviđeni trošak]]-LičnaNega[[#This Row],[Stvarni trošak]]","v":{"v":0,"d":"RSD 0.00"}},null,"Međuvrednost",null,null,{"$f":"SUBTOTAL(109,Pravni_aspekti[Razlika])","v":{"v":0,"d":"RSD 0.00"}}]
[null,"Kosa/nokti",null,null,{"$f":"LičnaNega[[#This Row],[Predviđeni trošak]]-LičnaNega[[#This Row],[Stvarni trošak]]","v":{"v":0,"d":"RSD 0.00"}}]
["Ukupan predviđeni trošak automatski se izračunava u ćeliji J59, ukupan stvarni trošak u ćeliji J61, a ukupna razlika u ćeliji J63.","Odeća",null,null,{"$f":"LičnaNega[[#This Row],[Predviđeni trošak]]-LičnaNega[[#This Row],[Stvarni trošak]]","v":{"v":0,"d":"RSD 0.00"}},null,"UKUPNI PREDVIĐENI TROŠAK",null,null,{"$f":"SUBTOTAL(109,Domaćinstvo[Predviđeni trošak],Prevoz[Predviđeni trošak],Osiguranje[Predviđeni trošak],Hrana[Predviđeni trošak],Ljubimci[Predviđeni trošak],LičnaNega[Predviđeni trošak],Zabava[Predviđeni trošak],Krediti[Predviđeni trošak],Porezi[Predviđeni trošak],Ušteda[Predviđeni trošak],Pokloni[Predviđeni trošak],Pravni_aspekti[Predviđeni trošak])","v":{"v":1195,"d":"RSD 1,195.00"}}]
[null,"Hemijsko čišćenje",null,null,{"$f":"LičnaNega[[#This Row],[Predviđeni trošak]]-LičnaNega[[#This Row],[Stvarni trošak]]","v":{"v":0,"d":"RSD 0.00"}}]
[null,"Teretana",null,null,{"$f":"LičnaNega[[#This Row],[Predviđeni trošak]]-LičnaNega[[#This Row],[Stvarni trošak]]","v":{"v":0,"d":"RSD 0.00"}},null,"UKUPNI STVARNI TROŠAK",null,null,{"$f":"SUBTOTAL(109,Domaćinstvo[Stvarni trošak],Prevoz[Stvarni trošak],Osiguranje[Stvarni trošak],Hrana[Stvarni trošak],Ljubimci[Stvarni trošak],LičnaNega[Stvarni trošak],Zabava[Stvarni trošak],Krediti[Stvarni trošak],Porezi[Stvarni trošak],Ušteda[Stvarni trošak],Pokloni[Stvarni trošak],Pravni_aspekti[Stvarni trošak])","v":{"v":1236,"d":"RSD 1,236.00"}}]
[null,"Organizacioni dugovi ili naknade",null,null,{"$f":"LičnaNega[[#This Row],[Predviđeni trošak]]-LičnaNega[[#This Row],[Stvarni trošak]]","v":{"v":0,"d":"RSD 0.00"}}]
[null,"Drugo",null,null,{"$f":"LičnaNega[[#This Row],[Predviđeni trošak]]-LičnaNega[[#This Row],[Stvarni trošak]]","v":{"v":0,"d":"RSD 0.00"}},null,"UKUPNA RAZLIKA",null,null,{"$f":"J59-J61","v":{"v":-41,"d":"(RSD 41.00)"}}]
[null,"Međuvrednost",null,null,{"$f":"SUBTOTAL(109,LičnaNega[Razlika])","v":{"v":0,"d":"RSD 0.00"}}]